bitfinex-derivatives/quotes_SOLF0:USTF0_20241002
["timestamp","ask_amount","ask_price","bid_price","bid_amount"]
[1727874488224,3.472,144.03,144.01,3.40832041]
[1727874489326,3.472,144.03,144.01,20.08832041]
[1727874489525,3.472,144.03,144.01,20.1524]
[1727874489728,3.472,144.03,144.02,3.42707416]
[1727874490123,0.12502,144.05,144.02,3.4721]
[1727874490432,0.12502,144.05,144.04,16.68]
[1727874490934,3.59662,144.05,144.04,16.68]
[1727874491126,0.12518,144.07,144.04,26.9317]
[1727874491431,0.12518,144.07,144.06,16.68]
[1727874491832,3.4709,144.08,144.06,16.68]
[1727874492033,3.4708,144.08,144.06,16.68]
[1727874492438,86.4645408,144.14,144.06,16.68]
[1727874493234,3.471,144.08,144.06,16.68]
[1727874493630,3.471,144.07,144.06,16.68]
[1727874493832,86.4645408,144.14,144.02,16.68]
[1727874493833,23.6207,144.1,144.02,16.68]
[1727874494141,3.4722,144.02,144.01,6.78]
[1727874494327,24.9852,144.1,144.01,10.31822398]
[1727874494523,24.9852,144.1,144.02,16.68]
[1727874495433,3.472,144.03,144.02,16.68]
[1727874495733,3.472,144.03,144.01,6.78]
[1727874495734,18.0445,144.1,144.01,6.78]
[1727874496035,3.4727,144.0,143.99,6.90502]
[1727874496238,3.4727,144.0,143.99,0.12502]
[1727874497636,3.4741,143.94,143.93,1.51292]
[1727874498137,1.3185,144.01,143.93,1.51292]
[1727874498527,1.3185,144.01,143.94,16.68]
[1727874499135,23.48502,144.05,143.95,6.68]
[1727874499335,1.3301,144.04,143.95,23.36]
[1727874500239,1.3301,144.04,143.95,16.68]
[1727874500434,16.68,144.01,143.93,0.12502]
[1727874500634,23.36,144.01,143.93,0.12502]
[1727874500831,3.4741,143.94,143.93,0.12502]
[1727874503034,3.4745,143.93,143.87,23.48502]
[1727874503241,1.3057,143.95,143.87,23.48502]
[1727874503541,1.3057,143.95,143.87,26.96072]
[1727874503542,3.4751,143.91,143.87,26.96072]
[1727874504037,1.3057,143.95,143.87,20.28072]
[1727874504240,3.4752,143.9,143.87,20.28072]
[1727874504428,3.4752,143.9,143.87,16.80502]
[1727874505034,1.3301,143.96,143.9,3.4751]
[1727874505234,0.12502,143.99,143.92,16.68]
[1727874505235,6.80502,143.99,143.92,16.68]
[1727874506037,3.4738,143.96,143.92,16.68]
[1727874506336,6.80502,143.99,143.91,16.68]
[1727874506736,3.4749,143.91,143.9,6.68]
[1727874507243,3.4747,143.92,143.9,6.68]
[1727874507747,1.3365,143.97,143.89,16.68]
[1727874507941,1.3365,143.97,143.88,8.0028]
[1727874508140,17.9975,143.96,143.88,1.3228]
[1727874508441,17.9975,143.96,143.87,0.12502]
[1727874508442,16.68,143.94,143.87,0.12502]
[1727874508938,3.4754,143.89,143.87,0.12502]
[1727874509143,16.68,143.94,143.87,0.12502]
[1727874509933,1.2898,143.95,143.87,16.80502]
[1727874510141,3.4751,143.9,143.87,16.80502]
[1727874510444,3.4751,143.9,143.87,20.28072]
[1727874510646,3.4756,143.88,143.87,0.12502]
[1727874511340,23.36,143.94,143.87,0.12502]
[1727874511644,1.3365,143.97,143.91,20.1548]
[1727874511842,1.3365,143.97,143.91,16.68]
[1727874512942,3.474,143.95,143.92,3.4746]
[1727874513440,3.474,143.95,143.91,16.68]
[1727874513645,3.474,143.95,143.91,3.4747]
[1727874513949,3.474,143.95,143.9,33.38]
[1727874514143,3.4739,143.96,143.92,3.4744]
[1727874514345,1.3365,143.97,143.92,3.4744]
[1727874514542,0.12502,143.99,143.94,3.474]
[1727874514743,3.4733,143.98,143.92,26.7]
[1727874514938,0.12502,143.99,143.92,26.7]
[1727874515249,3.4736,143.97,143.92,26.7]
[1727874515444,0.12502,143.99,143.9,33.38]
[1727874515641,0.12502,143.99,143.94,3.474]
[1727874515946,3.59802,143.99,143.94,6.68]
[1727874516135,0.12502,143.99,143.94,8.0399]
[1727874516442,0.12502,143.99,143.95,3.4738]
[1727874516640,3.4732,143.98,143.94,8.0399]
[1727874516840,0.12502,143.99,143.95,26.7]
[1727874517246,0.12502,143.99,143.96,3.4734]
[1727874517550,3.4734,143.98,143.95,26.7]
[1727874517754,0.12502,143.99,143.95,26.7]
[1727874517942,0.12502,143.99,143.95,30.1738]
[1727874518446,3.4734,143.98,143.95,30.1738]
[1727874518745,0.12502,143.99,143.94,9.3228]
[1727874518949,0.12502,143.99,143.92,26.7]
[1727874518950,0.12502,143.99,143.93,6.68]
[1727874519150,0.12502,143.99,143.89,1.3543]
[1727874519151,3.59021692,143.99,143.9,8.0703]
[1727874519450,9.2915,143.98,143.9,8.0703]
[1727874519940,3.4745,143.93,143.9,11.5453]
[1727874520342,3.4742,143.94,143.91,3.4748]
[1727874520942,9.2915,143.98,143.91,3.52314271]
[1727874521150,0.12502,143.99,143.91,3.52314271]
[1727874521448,0.12502,143.99,143.93,26.7]
[1727874521645,0.12502,143.99,143.94,6.68]
[1727874522344,0.12502,143.99,143.91,6.68]
[1727874522650,3.4735,143.97,143.91,10.1546]
[1727874522853,0.12502,143.99,143.91,6.68]
[1727874524853,3.4743,143.94,143.91,10.1548]
[1727874526154,0.12502,143.99,143.91,6.68]
[1727874526451,0.12502,143.99,143.93,26.7]
[1727874526952,3.4735,143.97,143.94,3.474]
[1727874527149,0.12502,143.99,143.93,26.7]
[1727874527452,0.12502,143.99,143.93,30.1743]
[1727874528257,3.4738,143.96,143.93,30.1743]
[1727874528656,0.12502,143.99,143.91,3.4747]
[1727874528852,0.12502,143.99,143.9,1.3903]
[1727874529854,0.12502,143.99,143.91,3.49312588]
[1727874530052,3.4733,143.98,143.95,3.4738]
[1727874530858,0.12502,143.99,143.93,33.28]
[1727874531057,3.4734,143.97,143.94,3.474]
[1727874531355,0.12502,143.99,143.93,33.28]
[1727874531562,3.4734,143.98,143.93,33.28]
[1727874531759,0.12502,143.99,143.93,33.28]
[1727874531969,0.12502,143.99,143.93,6.58]
[1727874532762,3.4741,143.94,143.93,6.58]
[1727874532961,0.12502,143.99,143.93,6.58]
[1727874533163,3.4739,143.95,143.93,10.0544]
[1727874533359,3.4739,143.95,143.93,6.58]
[1727874536475,3.4739,143.95,143.93,10.0543]
[1727874536776,3.4738,143.96,143.93,10.0543]
[1727874537977,0.12502,143.99,143.93,6.58]
[1727874538179,3.4741,143.94,143.93,6.58]
[1727874538378,0.12502,143.99,143.91,16.68]
[1727874538573,3.4745,143.93,143.91,16.68]
[1727874538773,0.12502,143.99,143.92,3.4745]
[1727874539271,0.12502,143.99,143.91,20.1547]
[1727874539674,0.12502,143.99,143.91,16.68]
[1727874539875,3.474,143.95,143.92,3.4746]
[1727874540070,0.12502,143.99,143.91,16.68]
[1727874540476,3.4743,143.94,143.91,20.1547]
[1727874540683,0.12502,143.99,143.91,16.68]
[1727874540975,20.35134082,143.99,143.9,7.9703]
[1727874541181,13.5266,143.98,143.9,1.3903]
[1727874541372,14.9101,143.98,143.9,1.3903]
[1727874541678,18.39943507,143.98,143.9,1.3903]
[1727874542070,3.4748,143.92,143.9,1.3903]
[1727874542776,3.4748,143.92,143.9,4.8654]
[1727874543279,3.4745,143.93,143.9,4.8654]
[1727874543581,18.39943507,143.98,143.9,4.8654]
[1727874543782,3.4746,143.93,143.9,4.8654]
[1727874544079,7.9635,143.98,143.9,1.3903]
[1727874544282,16.80502,143.99,143.93,16.68]
[1727874544283,3.4736,143.97,143.93,16.68]
[1727874544584,0.12502,143.99,143.95,3.4738]
[1727874544983,0.12502,143.99,143.96,3.4735]
[1727874545282,0.12502,143.99,143.92,10.0195378]
[1727874545283,0.12502,143.99,143.97,16.68]
[1727874545478,0.12502,143.99,143.98,3.4732]
[1727874545676,0.12502,143.99,143.97,16.68]
[1727874547178,0.12502,143.99,143.97,20.1534]
[1727874547687,3.59812,143.99,143.97,16.68]
[1727874548777,0.12502,143.99,143.97,16.68]
[1727874548977,0.12502,143.99,143.97,20.1532]
[1727874549184,0.12502,143.99,143.97,16.68]
[1727874549785,0.12502,143.99,143.92,20.1195378]
[1727874549786,0.12502,143.99,143.93,16.68]
[1727874550086,0.12502,143.99,143.92,6.58]
[1727874550591,3.4734,143.97,143.92,6.58]
[1727874550785,0.12502,143.99,143.92,6.58]
[1727874551085,0.12502,143.99,143.9,1.3903]
[1727874551086,16.68,143.97,143.9,1.3903]
[1727874551290,3.4749,143.92,143.9,1.3903]
[1727874551579,16.68,143.97,143.9,1.3903]
[1727874551987,3.4745,143.93,143.9,4.8653]
[1727874552190,16.68,143.97,143.9,1.3903]
[1727874552983,16.68,143.95,143.88,7.9114]
[1727874553179,3.4752,143.9,143.88,1.3314]
[1727874553384,16.68,143.95,143.88,1.3314]
[1727874553588,3.4756,143.88,143.87,0.12502]
[1727874554487,6.58,143.9,143.81,0.12502]
[1727874554688,26.68,143.88,143.81,0.12502]
[1727874554996,26.68,143.86,143.81,0.12502]
[1727874555180,3.477,143.82,143.81,0.12502]
[1727874556082,3.477,143.82,143.75,0.12502]
[1727874556285,3.4785,143.76,143.75,0.12502]
[1727874558390,34.6207,143.78,143.69,1.49492]
[1727874558391,3.4796,143.72,143.69,1.49492]
[1727874558686,26.68,143.76,143.69,0.12502]
[1727874558888,3.4799,143.7,143.69,0.12502]
[1727874562987,3.4797,143.72,143.69,0.12502]
[1727874563294,4.80569415,143.78,143.69,0.12502]
[1727874563295,26.68,143.76,143.69,0.12502]
[1727874563590,6.54,143.75,143.69,0.12502]
[1727874563987,3.479,143.74,143.7,3.4799]
[1727874564181,6.54,143.77,143.69,0.12502]
[1727874564686,1.3607,143.78,143.7,6.54]
[1727874564891,1.3607,143.78,143.7,7.8411]
[1727874565093,3.4787,143.76,143.7,7.8411]
[1727874565593,3.478,143.78,143.74,3.479]
[1727874566181,0.12502,143.81,143.74,6.54]
[1727874566788,3.60242,143.81,143.76,3.4783]
[1727874566983,0.12502,143.81,143.74,6.54]
[1727874568193,3.4783,143.77,143.74,6.54]
[1727874568489,0.12502,143.81,143.74,6.54]
[1727874568694,31.464,143.85,143.84,15.34168]
[1727874569084,38.08865971,143.85,143.75,0.12502]
[1727874569288,3.478,143.78,143.75,0.12502]
[1727874569492,26.68,143.83,143.75,0.12502]
[1727874570385,3.4778,143.79,143.75,0.12502]
[1727874570587,34.5277,143.85,143.75,0.12502]
[1727874570989,3.4775,143.81,143.76,3.4783]
[1727874571182,34.5277,143.85,143.76,3.4783]
[1727874571595,3.4778,143.8,143.76,3.4783]
[1727874573289,34.5277,143.85,143.75,0.12502]
[1727874573496,3.478,143.78,143.75,0.12502]
[1727874573693,34.5277,143.85,143.75,0.12502]
[1727874574002,35.8328,143.85,143.75,0.12502]
[1727874574804,26.68,143.82,143.75,0.12502]
[1727874575299,3.4785,143.76,143.75,0.12502]
[1727874575889,26.68,143.82,143.75,0.12502]
[1727874576097,3.4781,143.78,143.75,0.12502]
[1727874576497,2.6128,143.85,143.76,3.4785]
[1727874576498,6.54,143.84,143.76,3.4785]
[1727874576995,3.4778,143.8,143.76,3.4785]
[1727874577398,6.54,143.84,143.77,3.4781]
[1727874577599,6.54,143.84,143.75,0.12502]
[1727874577895,6.54,143.84,143.75,3.60362]
[1727874578101,3.4782,143.78,143.75,0.12502]
[1727874578402,6.54,143.84,143.75,0.12502]
[1727874578800,3.4784,143.77,143.75,0.12502]
[1727874579101,26.68,143.83,143.75,0.12502]
[1727874579290,3.4785,143.76,143.75,0.12502]
[1727874583198,32.93165621,143.78,143.69,0.12502]
[1727874583402,33.22,143.76,143.69,0.12502]
[1727874584304,3.4799,143.7,143.69,0.12502]
[1727874587204,3.4798,143.71,143.69,0.12502]
[1727874587905,26.68,143.76,143.69,0.12502]
[1727874588104,33.3,143.76,143.69,0.12502]
[1727874589308,3.4799,143.7,143.69,0.12502]
[1727874589603,33.3,143.76,143.69,0.12502]
[1727874590008,3.4798,143.71,143.69,0.12502]
[1727874590301,6.62,143.76,143.69,0.12502]
[1727874590605,3.4791,143.74,143.69,0.12502]
[1727874590820,29.4225,143.78,143.69,6.74502]
[1727874591102,6.62,143.78,143.7,26.68]
[1727874591292,6.62,143.78,143.7,28.0821]
[1727874591496,3.4788,143.75,143.72,3.4794]
[1727874592502,3.479,143.74,143.71,3.4796]
[1727874596005,6.62,143.78,143.7,28.0821]
[1727874596209,3.4796,143.72,143.7,1.4021]
[1727874597103,3.4796,143.72,143.7,4.8819]
[1727874597506,33.3,143.78,143.7,4.8819]
[1727874597707,3.4793,143.73,143.7,4.8819]
[1727874598205,33.3,143.78,143.7,4.8819]
[1727874599012,3.4794,143.73,143.7,4.8819]
[1727874599203,33.3,143.78,143.7,1.4021]
[1727874599404,6.62,143.78,143.7,1.4021]
[1727874599605,16.71,143.78,143.7,1.4021]
[1727874600299,20.10895407,143.78,143.69,23.45502]
[1727874600500,16.71,143.76,143.69,6.74502]
[1727874600904,3.4799,143.7,143.69,0.12502]
[1727874601700,20.1899,143.7,143.69,0.12502]
[1727874603308,16.71,143.68,143.63,0.12502]
[1727874603510,26.74,143.69,143.63,0.12502]
[1727874603819,3.4812,143.65,143.63,0.12502]
[1727874604211,26.74,143.69,143.63,0.12502]
[1727874604415,3.4814,143.64,143.63,0.12502]
[1727874604819,3.4824,143.6,143.59,0.12518]
[1727874606223,26.74,143.63,143.57,0.12502]
[1727874606224,3.4829,143.58,143.57,0.12502]
[1727874607610,2.7947,143.64,143.57,0.12502]
[1727874607811,9.4147,143.64,143.57,0.12502]
[1727874608012,3.4828,143.59,143.57,0.12502]
[1727874608207,9.4147,143.64,143.57,0.12502]
[1727874608410,9.4147,143.64,143.58,3.4828]
[1727874608618,3.4819,143.62,143.58,3.4828]
[1727874608821,26.74,143.67,143.57,0.12502]
[1727874609013,6.62,143.67,143.57,26.86502]
[1727874609219,3.4813,143.65,143.57,26.86502]
[1727874609415,6.62,143.67,143.61,3.4821]
[1727874609719,6.62,143.67,143.6,6.62]
[1727874609922,6.62,143.67,143.61,3.4821]
[1727874610124,6.62,143.67,143.6,6.62]
[1727874610618,29.61182,143.69,143.62,3.4818]
[1727874610822,29.61182,143.69,143.6,6.62]
[1727874611115,2.87182,143.69,143.63,3.4815]
[1727874611418,29.61182,143.69,143.6,7.934]
[1727874612212,2.87182,143.69,143.6,7.934]
[1727874612519,3.60542,143.69,143.65,3.481]
[1727874612714,0.12502,143.69,143.63,6.62]
[1727874613313,0.12502,143.69,143.64,26.74]
[1727874613517,0.12502,143.69,143.66,26.74]
[1727874613713,3.4792,143.73,143.7,3.4797]
[1727874614118,0.12502,143.75,143.68,1.2717]
[1727874614425,0.12502,143.75,143.72,3.4793]
[1727874614624,0.12502,143.75,143.71,6.62]
[1727874614925,3.479,143.74,143.71,10.0995]
[1727874616225,0.12502,143.75,143.71,6.62]
[1727874616424,0.12502,143.75,143.72,3.4794]
[1727874617422,0.12502,143.75,143.71,6.62]
[1727874617828,0.12502,143.75,143.72,3.4794]
[1727874618016,0.12502,143.75,143.71,33.36]
[1727874618429,0.12502,143.75,143.74,3.479]
[1727874619117,0.12502,143.75,143.72,1.3125]
[1727874619118,0.12502,143.81,143.77,3.4782]
[1727874619523,3.60242,143.81,143.75,6.74]
[1727874619727,3.60242,143.81,143.75,34.8472]
[1727874619916,3.60242,143.81,143.78,3.4779]
[1727874620320,0.12502,143.81,143.75,34.8472]
[1727874620521,0.12502,143.81,143.8,3.4775]
[1727874622028,0.12502,143.81,143.79,6.74]
[1727874622419,0.12502,143.81,143.78,3.4779]
[1727874622617,3.60242,143.81,143.78,10.2179]
[1727874622822,0.12502,143.81,143.8,3.4775]
[1727874624525,0.12502,143.87,143.83,3.4766]
[1727874624821,0.12502,143.87,143.82,6.74]
[1727874625217,0.12502,143.87,143.85,3.4763]
[1727874625617,0.12502,143.87,143.82,33.48]
[1727874625824,0.12502,143.87,143.86,3.4761]
[1727874626021,0.12502,143.87,143.86,10.2161]
[1727874626527,0.12502,143.93,143.86,10.2161]
[1727874626528,0.12502,143.93,143.86,6.74]
[1727874626821,0.12502,143.93,143.88,26.74]
[1727874627233,0.12502,143.93,143.9,3.4749]
[1727874627425,0.12502,143.93,143.9,10.1949]
[1727874627820,3.4749,143.91,143.9,6.72]
[1727874628021,0.12502,143.93,143.87,6.72]
[1727874628924,3.4748,143.92,143.89,3.4752]
[1727874629326,0.12502,143.93,143.88,26.74]
[1727874629525,0.12502,143.93,143.91,3.4747]
[1727874629734,0.12502,143.93,143.88,28.1109]
[1727874630926,152.62488879,143.99,143.9,26.74]
[1727874630927,0.12502,143.99,143.9,26.74]
[1727874631132,0.12502,143.99,143.95,3.4739]
[1727874631322,3.4732,143.98,143.93,26.74]
[1727874631523,0.12502,143.99,143.93,26.74]
[1727874631725,0.12502,143.99,143.95,3.4739]
[1727874631933,0.12502,143.99,143.95,10.1939]
[1727874632629,3.4733,143.98,143.95,10.1939]
[1727874632838,3.27073442,143.98,143.95,10.1939]
[1727874634036,3.4734,143.97,143.95,6.72]
[1727874634332,0.12502,143.99,143.95,6.72]
[1727874634740,3.59812,143.99,143.95,6.72]
[1727874635134,3.4732,143.98,143.95,10.1938]
[1727874635639,0.12502,143.99,143.95,6.72]
[1727874636233,3.4732,143.98,143.95,10.1939]
[1727874636734,3.4739,143.96,143.93,6.72]
[1727874637037,0.12502,143.99,143.93,6.72]
[1727874637232,3.4738,143.96,143.89,4.7845]
[1727874637440,28.029,143.98,143.9,6.72]
[1727874639036,1.289,143.98,143.9,6.72]
[1727874640036,3.4741,143.95,143.91,3.4747]
[1727874640241,1.289,143.98,143.9,6.72]
[1727874640944,1.289,143.98,143.88,1.3709]
[1727874641137,2.7512,143.97,143.89,6.72]
[1727874641545,9.4712,143.97,143.89,6.72]
[1727874641939,9.4712,143.97,143.85,4.7492576]
[1727874641940,26.74,143.96,143.85,1.2708]
[1727874642143,26.74,143.94,143.86,6.72]
[1727874642338,3.4756,143.88,143.84,6.72]
[1727874643435,3.4756,143.88,143.81,28.13582]
[1727874643637,3.4756,143.88,143.82,6.72]
[1727874643843,26.74,143.89,143.81,0.12502]
[1727874644041,33.46,143.89,143.81,0.12502]
[1727874644445,3.4767,143.84,143.81,0.12502]
[1727874644645,6.72,143.89,143.81,0.12502]
[1727874645045,3.4759,143.87,143.83,3.4768]
[1727874645344,33.46,143.92,143.81,28.18252]
[1727874645549,0.12502,143.93,143.81,28.18252]
[1727874645847,6.84502,143.93,143.81,28.18252]
[1727874646146,6.84502,143.93,143.82,3.4769]
[1727874646347,6.84502,143.93,143.81,28.18252]
[1727874646744,6.84502,143.93,143.83,26.74]
[1727874647044,0.12502,143.93,143.84,6.72]
[1727874647251,0.12502,143.93,143.85,1.4036]
[1727874647449,0.12502,143.93,143.86,30.2575612]
[1727874648152,0.12502,143.93,143.87,3.4756]
[1727874648347,0.12502,143.93,143.88,6.44]
[1727874648753,0.12502,143.93,143.88,33.18]
[1727874648944,0.12502,143.93,143.89,1.3332]
[1727874649951,3.59962,143.93,143.89,4.8084]
[1727874650254,0.12502,143.93,143.89,4.8084]
[1727874650944,0.12502,143.93,143.89,1.3332]
[1727874651546,0.12502,143.93,143.9,3.4751]
[1727874651747,0.12502,143.93,143.89,1.3332]
[1727874652141,0.12502,143.93,143.91,26.74]
[1727874652346,0.12502,143.99,143.92,6.44]
[1727874652548,3.4744,143.93,143.92,6.44]
[1727874653241,0.12502,143.99,143.92,6.44]
[1727874654848,3.4743,143.94,143.92,6.44]
[1727874655047,0.12502,143.99,143.92,6.44]
[1727874655247,3.474,143.95,143.92,9.9145]
[1727874655448,0.12502,143.99,143.92,6.44]
[1727874656052,3.4734,143.97,143.92,6.44]
[1727874656255,3.4734,143.97,143.92,7.8227]
[1727874656445,0.12502,143.99,143.92,7.8227]
[1727874656650,3.4736,143.97,143.92,7.8227]
[1727874656954,3.4736,143.97,143.94,3.474]
[1727874657151,3.4739,143.96,143.92,7.8227]
[1727874657550,0.12502,143.99,143.92,7.8227]
[1727874657746,0.12502,143.99,143.93,3.4744]
[1727874658354,3.4737,143.96,143.93,3.4744]
[1727874658556,0.12502,143.99,143.93,3.4743]
[1727874658747,3.4736,143.97,143.92,7.8227]
[1727874659347,3.4737,143.96,143.93,3.4742]
[1727874660659,3.4744,143.93,143.92,9.2233]
[1727874661167,3.4734,143.97,143.92,12.6979]
[1727874661356,0.12502,143.99,143.92,12.6979]
[1727874661754,0.12502,143.99,143.92,1.3827]
[1727874661956,0.12502,143.99,143.92,6.44]
[1727874662161,0.12502,143.99,143.9,3.4749]
[1727874662458,0.12502,143.99,143.93,26.74]
[1727874662664,0.12502,143.99,143.95,26.74]
[1727874662865,0.12502,143.99,143.98,26.74]
[1727874663060,0.12502,144.05,143.98,26.74]
[1727874663361,0.12502,144.05,144.0,26.74]
[1727874663761,0.12502,144.05,143.99,6.44]
[1727874664071,0.12502,144.05,143.96,9.1261]
[1727874664360,1.51412,144.05,143.96,7.7857]
[1727874664558,1.51412,144.05,143.93,101.90502]
[1727874664559,1.51412,144.05,143.93,105.37922]
[1727874664760,26.74,144.03,143.95,6.44]
[1727874664958,1.3922,144.02,143.95,6.44]
[1727874665262,2.7531,144.02,143.93,6.56502]
[1727874665455,1.3922,144.02,143.93,33.30502]
[1727874665658,1.3922,144.02,143.95,3.4738]
[1727874665856,1.3922,144.02,143.93,33.30502]
[1727874666361,3.4733,143.98,143.93,33.30502]
[1727874666753,3.4733,143.98,143.94,3.474]
[1727874667155,3.4733,143.98,143.93,33.30502]
[1727874667452,7.95412,144.05,143.96,26.74]
[1727874667656,7.95412,144.05,143.97,6.44]
[1727874668053,3.4726,144.01,143.97,9.9132]
[1727874668460,3.4724,144.02,143.99,3.4728]
[1727874668852,0.12502,144.05,143.97,7.7161]
[1727874669053,3.4724,144.02,143.97,7.7161]
[1727874669554,0.12502,144.05,143.97,7.7161]
[1727874669754,3.4726,144.01,143.98,3.4731]
[1727874670656,3.4732,143.98,143.95,3.4737]
[1727874670860,0.12502,144.05,143.94,6.44]
[1727874671053,6.44,144.04,143.94,6.44]
[1727874671260,3.4739,143.95,143.94,6.44]
[1727874671457,6.44,144.04,143.94,6.44]
[1727874671955,30.29155056,144.03,143.94,6.44]
[1727874672158,31.57065056,144.03,143.94,6.44]
[1727874672759,31.57065056,144.03,143.94,33.18]
[1727874672760,1.2791,144.03,143.94,33.18]
[1727874672962,3.4733,143.98,143.95,3.4738]
[1727874673159,1.2791,144.03,143.94,33.18]
[1727874673365,6.44,144.04,143.96,26.74]
[1727874674062,30.29253751,144.03,143.93,0.12502]
[1727874674259,26.74,144.01,143.93,0.12502]
[1727874674460,26.74,143.98,143.93,0.12502]
[1727874674768,3.4741,143.94,143.93,0.12502]
[1727874681658,7.7012,143.99,143.93,0.12502]
[1727874682866,3.4741,143.94,143.93,0.12502]
[1727874686875,3.4756,143.88,143.87,0.12502]
[1727874687869,16.69,143.88,143.81,0.12502]
[1727874688181,3.477,143.82,143.81,0.12502]
[1727874689177,3.4783,143.77,143.75,6.44502]
[1727874689578,6.32,143.83,143.75,6.44502]
[1727874689579,33.05,143.83,143.75,6.44502]
[1727874689778,6.32,143.83,143.75,6.44502]
[1727874690169,26.73,143.85,143.75,6.44502]
[1727874690170,3.4779,143.79,143.75,6.44502]
[1727874690473,6.34,143.84,143.75,6.44502]
[1727874690776,7.6563,143.86,143.75,33.17502]
[1727874691281,3.478,143.78,143.75,6.44502]
[1727874691778,3.4777,143.8,143.76,3.4785]
[1727874691967,26.73,143.85,143.75,6.44502]
[1727874692168,7.6563,143.86,143.76,26.73]
[1727874692778,6.34,143.86,143.76,26.73]
[1727874692977,6.46502,143.87,143.78,26.73]
[1727874693177,3.4772,143.82,143.78,30.2079]
[1727874693479,6.46502,143.87,143.77,1.2822]
[1727874693687,3.4766,143.84,143.77,4.7602]
[1727874693978,6.46502,143.87,143.77,4.7602]
[1727874694279,3.4775,143.81,143.77,4.7602]
[1727874694475,6.46502,143.87,143.78,3.478]
[1727874694680,6.46502,143.87,143.77,1.2822]
[1727874694976,3.4771,143.82,143.78,3.4778]
[1727874695384,3.4771,143.82,143.77,1.2822]
[1727874695679,3.4772,143.82,143.78,3.4779]
[1727874695976,3.4772,143.82,143.79,3.4777]
[1727874696370,6.46502,143.87,143.77,1.2822]
[1727874696575,3.4773,143.81,143.78,3.4778]
[1727874696879,3.4773,143.81,143.78,9.8178]
[1727874697480,3.4764,143.85,143.78,33.07]
[1727874697879,0.12502,143.87,143.81,3.4771]
[1727874698085,3.4766,143.84,143.81,3.4771]
[1727874698775,3.4764,143.85,143.82,3.477]
[1727874698977,0.12502,143.87,143.82,3.477]
[1727874699186,0.12502,143.87,143.81,1.3536]
[1727874699679,0.12502,143.87,143.77,7.6222]
[1727874699887,0.12502,143.87,143.77,1.2822]
[1727874700177,26.73,143.86,143.77,1.2822]
[1727874700381,26.73,143.83,143.76,6.34]
[1727874700983,3.4773,143.81,143.76,6.34]
[1727874701287,6.34,143.81,143.75,0.12502]
[1727874702081,3.4782,143.78,143.75,0.12502]
[1727874702482,6.34,143.81,143.75,0.12502]
[1727874702783,6.34,143.81,143.75,3.60362]
[1727874702982,6.34,143.81,143.75,0.12502]
[1727874703284,3.4782,143.78,143.75,0.12502]
[1727874703483,6.34,143.81,143.75,0.12502]
[1727874704290,3.4782,143.78,143.75,0.12502]
[1727874704584,1.3665,143.82,143.75,0.12502]
[1727874704982,3.4779,143.79,143.75,3.60372]
[1727874705183,1.3665,143.82,143.75,3.60372]